[Event "*** Titled Tuesday 3|2 Blitz"]
[Site "Chess.com"]
[Date "2016.01.05"]
[Round "4"]
[White "chessdude"]
[Black "FairChess_on_YouTube"]
[Result "1-0"]
[WhiteElo "2361"]
[BlackElo "2732"]
[TimeControl "180+2"]
[EndTime "17:52:14 PST"]
[Termination "chessdude won by resignation"]

1. d4 {[%clk 0:02:59.9]} 1... d5 {[%clk 0:03:00.6]} 2. c4 {[%clk 0:02:59.4]}
2... c6 {[%clk 0:03:02.1]} 3. Nc3 {[%clk 0:03:00.3]} 3... Nf6 {[%clk 0:03:02.9]}
4. e3 {[%clk 0:02:59.3]} 4... a6 {[%clk 0:03:02.7]} 5. Qc2 {[%clk 0:02:57.4]}
5... g6 {[%clk 0:03:03.5]} 6. Bd3 {[%clk 0:02:50.6]} 6... Bg7 {[%clk 0:03:04.4]}
7. Nf3 {[%clk 0:02:50.9]} 7... O-O {[%clk 0:03:05.6]} 8. O-O {[%clk 0:02:50.4]}
8... Bg4 {[%clk 0:03:07.2]} 9. Ne5 {[%clk 0:02:50.8]} 9... Be6 {[%clk
0:03:08.8]} 10. c5 {[%clk 0:02:51.3]} 10... Nbd7 {[%clk 0:03:07.3]} 11. f4
{[%clk 0:02:52.6]} 11... Nxe5 {[%clk 0:03:07.5]} 12. fxe5 {[%clk 0:02:53.5]}
12... Nd7 {[%clk 0:03:09.1]} 13. Bd2 {[%clk 0:02:49.2]} 13... f6 {[%clk
0:03:06.1]} 14. exf6 {[%clk 0:02:47.5]} 14... exf6 {[%clk 0:03:07.1]} 15. b4
{[%clk 0:02:47]} 15... f5 {[%clk 0:03:07.5]} 16. Ne2 {[%clk 0:02:44.9]} 16...
Nf6 {[%clk 0:03:01.4]} 17. a4 {[%clk 0:02:39.8]} 17... Bd7 {[%clk 0:02:55.6]}
18. b5 {[%clk 0:02:22.1]} 18... axb5 {[%clk 0:02:56.2]} 19. axb5 {[%clk
0:02:23.7]} 19... Re8 {[%clk 0:02:49.8]} 20. h3 {[%clk 0:02:17.7]} 20... Ne4
{[%clk 0:02:16.2]} 21. Bxe4 {[%clk 0:02:06.4]} 21... Rxe4 {[%clk 0:02:16.7]} 22.
b6 {[%clk 0:02:06.5]} 22... Rxa1 {[%clk 0:02:09.3]} 23. Rxa1 {[%clk 0:02:06.3]}
23... f4 {[%clk 0:02:10.9]} 24. Ra3 {[%clk 0:01:35.9]} 24... f3 {[%clk
0:01:48.4]} 25. gxf3 {[%clk 0:01:34.1]} 25... Qg5+ {[%clk 0:01:43.1]} 26. Kf2
{[%clk 0:01:20.7]} 26... Bxh3 {[%clk 0:01:35.7]} 27. Ng3 {[%clk 0:01:06.5]}
27... Re8 {[%clk 0:01:31.5]} 28. Qa2 {[%clk 0:00:53.7]} 28... h5 {[%clk
0:01:10.9]} 29. Ra8 {[%clk 0:00:53.9]} 29... Bc8 {[%clk 0:01:11.8]} 30. Ne4
{[%clk 0:00:44.3]} 30... Qh4+ {[%clk 0:01:07.6]} 31. Ke2 {[%clk 0:00:45.5]}
31... Bf8 {[%clk 0:00:24.8]} 32. Be1 {[%clk 0:00:35.1]} 32... Qh2+ {[%clk
0:00:23.9]} 33. Bf2 {[%clk 0:00:35.7]} 33... Kg7 {[%clk 0:00:21.9]} 34. Nd2
{[%clk 0:00:17.8]} 34... h4 {[%clk 0:00:16.9]} 35. Qa7 {[%clk 0:00:18.5]} 35...
Qh3 {[%clk 0:00:13.9]} 36. Rb8 {[%clk 0:00:19.6]} 36... Qd7 {[%clk 0:00:10]} 37.
Bxh4 {[%clk 0:00:19.8]} 37... Kh7 {[%clk 0:00:11.1]} 38. Bf2 {[%clk 0:00:20.2]}
38... Bg7 {[%clk 0:00:11.4]} 39. Qa1 {[%clk 0:00:21.1]} 39... Qf5 {[%clk
0:00:11.5]} 40. Qh1+ {[%clk 0:00:20.7]} 40... Kg8 {[%clk 0:00:12.5]} 41. Qh4
{[%clk 0:00:22.1]} 41... Kf7 {[%clk 0:00:11.5]} 42. Bg3 {[%clk 0:00:18.6]} 42...
Qc2 {[%clk 0:00:04.3]} 43. Qf4+ {[%clk 0:00:18.8]} 43... Kg8 {[%clk 0:00:05.6]}
44. Qc7 {[%clk 0:00:19.1]} 44... Qf5 {[%clk 0:00:06.5]} 45. Qf4 {[%clk
0:00:11.1]} 45... Kf7 {[%clk 0:00:05.9]} 46. Qxf5+ {[%clk 0:00:11.5]} 46... gxf5
{[%clk 0:00:07.6]} 47. Kd3 {[%clk 0:00:12.5]} 47... f4 {[%clk 0:00:08.2]} 48.
Bxf4 {[%clk 0:00:13.3]} 48... Bf5+ {[%clk 0:00:09.8]} 49. e4 {[%clk 0:00:13.7]}
49... dxe4+ {[%clk 0:00:09.9]} 50. fxe4 {[%clk 0:00:15.4]} 50... Rxb8 {[%clk
0:00:11.1]} 51. Bxb8 {[%clk 0:00:17.1]} 51... Be6 {[%clk 0:00:12.4]} 52. Nc4
{[%clk 0:00:18.4]} 52... Bf8 {[%clk 0:00:11.8]} 53. Bd6 {[%clk 0:00:19.5]} 53...
Bg7 {[%clk 0:00:12.7]} 54. Be5 {[%clk 0:00:21.1]} 54... Bf8 {[%clk 0:00:09.6]}
55. Bd6 {[%clk 0:00:22.5]} 55... Bg7 {[%clk 0:00:10.6]} 56. Na5 {[%clk
0:00:24.1]} 56... Bc8 {[%clk 0:00:11.4]} 57. d5 {[%clk 0:00:25.8]} 57... cxd5
{[%clk 0:00:10.4]} 58. exd5 {[%clk 0:00:27.7]} 58... Bf5+ {[%clk 0:00:09.9]} 59.
Kc4 {[%clk 0:00:29.1]} 59... Bh3 {[%clk 0:00:08.3]} 60. Nxb7 {[%clk 0:00:29.3]}
60... Bf1+ {[%clk 0:00:09.9]} 61. Kb4 {[%clk 0:00:30.8]} 61... Bg2 {[%clk
0:00:10.9]} 62. Nd8+ {[%clk 0:00:28.1]} 62... Ke8 {[%clk 0:00:12.4]} 63. b7
{[%clk 0:00:29.4]} 1-0

[Event "*** Titled Tuesday 3|2 Blitz"]
[Site "Chess.com"]
[Date "2016.01.05"]
[Round "4"]
[White "AUSSIE_PINOY"]
[Black "chess4life23"]
[Result "0-1"]
[WhiteElo "2317"]
[BlackElo "2163"]
[TimeControl "180+2"]
[EndTime "17:52:40 PST"]
[Termination "chess4life23 won by checkmate"]

1. d4 {[%clk 0:03:01.9]} 1... Nf6 {[%clk 0:02:57]} 2. Nf3 {[%clk 0:03:03]} 2...
g6 {[%clk 0:02:56.2]} 3. c4 {[%clk 0:03:03.8]} 3... Bg7 {[%clk 0:02:57.1]} 4.
Nc3 {[%clk 0:03:04.9]} 4... d6 {[%clk 0:02:58.7]} 5. e4 {[%clk 0:03:05.8]} 5...
O-O {[%clk 0:03:00.1]} 6. Be2 {[%clk 0:03:07]} 6... e5 {[%clk 0:02:59.6]} 7. O-O
{[%clk 0:03:07.7]} 7... Nc6 {[%clk 0:02:59.9]} 8. d5 {[%clk 0:03:08.1]} 8... Ne7
{[%clk 0:03:00.8]} 9. b4 {[%clk 0:03:09.2]} 9... a5 {[%clk 0:02:51]} 10. bxa5
{[%clk 0:03:09.3]} 10... Rxa5 {[%clk 0:02:51.3]} 11. a4 {[%clk 0:03:09.3]} 11...
Ne8 {[%clk 0:02:41.8]} 12. Nd2 {[%clk 0:03:09.4]} 12... f5 {[%clk 0:02:41.8]}
13. Nb3 {[%clk 0:03:09.9]} 13... Ra8 {[%clk 0:02:41.8]} 14. f3 {[%clk
0:03:10.2]} 14... f4 {[%clk 0:02:38.8]} 15. c5 {[%clk 0:03:10]} 15... g5 {[%clk
0:02:37.7]} 16. g4 {[%clk 0:02:58.6]} 16... fxg3 {[%clk 0:01:57.3]} 17. hxg3
{[%clk 0:02:56.8]} 17... Ng6 {[%clk 0:01:58.1]} 18. Kg2 {[%clk 0:02:51.4]} 18...
h5 {[%clk 0:01:51.9]} 19. cxd6 {[%clk 0:01:56.6]} 19... cxd6 {[%clk 0:01:49.4]}
20. Be3 {[%clk 0:01:42.9]} 20... h4 {[%clk 0:01:48.5]} 21. g4 {[%clk 0:01:36.7]}
21... Nf4+ {[%clk 0:01:29.3]} 22. Kh2 {[%clk 0:01:35.8]} 22... Nf6 {[%clk
0:00:56.1]} 23. Nb5 {[%clk 0:01:17.7]} 23... Bxg4 {[%clk 0:00:42.9]} 24. fxg4
{[%clk 0:01:13.7]} 24... Nxe4 {[%clk 0:00:43.9]} 25. Bf3 {[%clk 0:01:14]} 25...
Ng3 {[%clk 0:00:41.1]} 26. Nc3 {[%clk 0:00:54.2]} 26... Nxf1+ {[%clk 0:00:28.9]}
27. Qxf1 {[%clk 0:00:55.1]} 27... e4 {[%clk 0:00:28.7]} 28. Nxe4 {[%clk
0:00:56.1]} 28... Nxd5 {[%clk 0:00:23.5]} 29. Bd4 {[%clk 0:00:50.9]} 29... Rc8
{[%clk 0:00:16.3]} 30. Bxg7 {[%clk 0:00:50.3]} 30... Kxg7 {[%clk 0:00:17.8]} 31.
Nd4 {[%clk 0:00:51.5]} 31... Qd7 {[%clk 0:00:11.9]} 32. Nxg5 {[%clk 0:00:45.3]}
32... Ne3 {[%clk 0:00:11.1]} 33. Nde6+ {[%clk 0:00:42.4]} 33... Kh8 {[%clk
0:00:10.8]} 34. Qd3 {[%clk 0:00:41.2]} 34... Rxf3 {[%clk 0:00:08.6]} 35. Qd4+
{[%clk 0:00:31.5]} 35... Kg8 {[%clk 0:00:09.9]} 36. Nxf3 {[%clk 0:00:23.4]}
36... Rc2+ {[%clk 0:00:10.2]} 37. Kh1 {[%clk 0:00:20.7]} 37... Qxe6 {[%clk
0:00:12.1]} 38. Ng5 {[%clk 0:00:21.3]} 38... Qxg4 {[%clk 0:00:10.3]} 39. Qxg4
{[%clk 0:00:19.5]} 39... Nxg4 {[%clk 0:00:12.2]} 40. Rg1 {[%clk 0:00:17.1]}
40... Nf2+ {[%clk 0:00:13.1]} 41. Kh2 {[%clk 0:00:18.5]} 41... Kf8 {[%clk
0:00:14]} 42. Rg2 {[%clk 0:00:17.8]} 42... Rb2 {[%clk 0:00:14.7]} 43. Nf3 {[%clk
0:00:17.9]} 43... Nd3 {[%clk 0:00:15.8]} 44. Nd2 {[%clk 0:00:15.9]} 44... Ke7
{[%clk 0:00:16.4]} 45. Kh3 {[%clk 0:00:16.2]} 45... Kd7 {[%clk 0:00:17.4]} 46.
Kxh4 {[%clk 0:00:17.6]} 46... Kc6 {[%clk 0:00:18.2]} 47. Kg4 {[%clk 0:00:15.3]}
47... Rb4+ {[%clk 0:00:17.9]} 48. Kf5 {[%clk 0:00:15.2]} 48... Rf4+ {[%clk
0:00:16.9]} 49. Ke6 {[%clk 0:00:15.6]} 49... Rxa4 {[%clk 0:00:17.9]} 50. Rg7
{[%clk 0:00:13.4]} 50... Nf4+ {[%clk 0:00:18.3]} 51. Ke7 {[%clk 0:00:13.9]}
51... Nd5+ {[%clk 0:00:19.8]} 52. Kd8 {[%clk 0:00:14.6]} 52... Nb6 {[%clk
0:00:19.8]} 53. Rc7+ {[%clk 0:00:14.6]} 53... Kb5 {[%clk 0:00:19.7]} 54. Rxb7
{[%clk 0:00:16]} 54... Ra8+ {[%clk 0:00:20.9]} 55. Kc7 {[%clk 0:00:16.3]} 55...
Ra6 {[%clk 0:00:21.7]} 56. Ne4 {[%clk 0:00:15.3]} 56... d5 {[%clk 0:00:19.7]}
57. Nd6+ {[%clk 0:00:15.7]} 57... Kc5 {[%clk 0:00:21]} 58. Nf7 {[%clk
0:00:15.9]} 58... d4 {[%clk 0:00:20.9]} 59. Ne5 {[%clk 0:00:16.8]} 59... Nd5+
{[%clk 0:00:19.8]} 60. Kd7 {[%clk 0:00:15.6]} 60... Rd6+ {[%clk 0:00:20.3]} 61.
Ke8 {[%clk 0:00:16.8]} 61... Nf6+ {[%clk 0:00:20.7]} 62. Kf7 {[%clk 0:00:17.6]}
62... Ne4 {[%clk 0:00:18.3]} 63. Nd3+ {[%clk 0:00:18]} 63... Kc4 {[%clk
0:00:18.4]} 64. Ne5+ {[%clk 0:00:19.2]} 64... Kc3 {[%clk 0:00:18.2]} 65. Ra7
{[%clk 0:00:18.1]} 65... Nc5 {[%clk 0:00:15.9]} 66. Ra5 {[%clk 0:00:15]} 66...
Nb3 {[%clk 0:00:15.3]} 67. Ra3 {[%clk 0:00:14.8]} 67... Rd5 {[%clk 0:00:15.5]}
68. Nc6 {[%clk 0:00:13.5]} 68... d3 {[%clk 0:00:15.1]} 69. Ke6 {[%clk
0:00:11.8]} 69... Rc5 {[%clk 0:00:08]} 70. Ne5 {[%clk 0:00:10.3]} 70... d2
{[%clk 0:00:08.2]} 71. Nf3 {[%clk 0:00:06.8]} 71... d1=Q {[%clk 0:00:08.6]} 72.
Ra6 {[%clk 0:00:06.9]} 72... Qd5+ {[%clk 0:00:08.3]} 73. Kf6 {[%clk 0:00:07.5]}
73... Qf5+ {[%clk 0:00:09.3]} 74. Ke7 {[%clk 0:00:09]} 74... Rc7+ {[%clk
0:00:10.3]} 75. Kd8 {[%clk 0:00:09.9]} 75... Qd7# {[%clk 0:00:11.5]} 0-1

[Event "*** Titled Tuesday 3|2 Blitz"]
[Site "Chess.com"]
[Date "2016.01.05"]
[Round "4"]
[White "nfds"]
[Black "Gabrielian_Artur"]
[Result "0-1"]
[WhiteElo "2340"]
[BlackElo "2488"]
[TimeControl "180+2"]
[EndTime "17:52:44 PST"]
[Termination "Gabrielian_Artur won on time"]

1. e4 {[%clk 0:03:01.9]} 1... c5 {[%clk 0:03:00.6]} 2. Nf3 {[%clk 0:03:01.9]}
2... d6 {[%clk 0:03:02.1]} 3. Nc3 {[%clk 0:03:02.4]} 3... Nf6 {[%clk 0:03:01]}
4. Bb5+ {[%clk 0:03:00.5]} 4... Nbd7 {[%clk 0:03:01.4]} 5. O-O {[%clk
0:02:54.5]} 5... a6 {[%clk 0:03:00.5]} 6. Bxd7+ {[%clk 0:02:53.8]} 6... Bxd7
{[%clk 0:03:01.8]} 7. e5 {[%clk 0:02:42.5]} 7... dxe5 {[%clk 0:03:02.1]} 8. Nxe5
{[%clk 0:02:44.4]} 8... e6 {[%clk 0:03:03.6]} 9. d4 {[%clk 0:02:40.2]} 9... cxd4
{[%clk 0:03:01.3]} 10. Qxd4 {[%clk 0:02:38]} 10... Bc6 {[%clk 0:02:45.8]} 11.
Nxc6 {[%clk 0:02:27.5]} 11... bxc6 {[%clk 0:02:46.4]} 12. Qc4 {[%clk 0:02:22.9]}
12... Qc8 {[%clk 0:02:42.6]} 13. Na4 {[%clk 0:02:06.7]} 13... Nd5 {[%clk
0:02:42.7]} 14. Qe4 {[%clk 0:01:50.4]} 14... Be7 {[%clk 0:02:36.9]} 15. c4
{[%clk 0:01:43.1]} 15... Nf6 {[%clk 0:02:37.8]} 16. Qe2 {[%clk 0:01:44.3]} 16...
Qc7 {[%clk 0:02:34.1]} 17. Be3 {[%clk 0:01:31.7]} 17... c5 {[%clk 0:02:34.4]}
18. Rfd1 {[%clk 0:01:17.4]} 18... O-O {[%clk 0:02:34.7]} 19. Rd3 {[%clk
0:01:16.3]} 19... Rfd8 {[%clk 0:02:29.9]} 20. Rad1 {[%clk 0:01:16.6]} 20... Rxd3
{[%clk 0:02:30.2]} 21. Rxd3 {[%clk 0:01:18.5]} 21... Qc6 {[%clk 0:02:26.7]} 22.
b3 {[%clk 0:01:18.3]} 22... Rc8 {[%clk 0:02:26.1]} 23. Qd2 {[%clk 0:01:14.5]}
23... h6 {[%clk 0:02:22.9]} 24. f3 {[%clk 0:01:11.2]} 24... e5 {[%clk
0:02:15.5]} 25. Nc3 {[%clk 0:00:52.2]} 25... e4 {[%clk 0:02:16.3]} 26. fxe4
{[%clk 0:00:46.2]} 26... Nxe4 {[%clk 0:02:17]} 27. Nd5 {[%clk 0:00:41.8]} 27...
Bf8 {[%clk 0:02:17.9]} 28. Qe2 {[%clk 0:00:39]} 28... Re8 {[%clk 0:02:11]} 29.
Qf3 {[%clk 0:00:38.8]} 29... Qg6 {[%clk 0:02:08.4]} 30. Rd1 {[%clk 0:00:35.6]}
30... Bd6 {[%clk 0:02:05.6]} 31. Rf1 {[%clk 0:00:32.6]} 31... Re6 {[%clk
0:01:41.6]} 32. Qf5 {[%clk 0:00:29.8]} 32... Qxf5 {[%clk 0:01:25.4]} 33. Rxf5
{[%clk 0:00:31.7]} 33... g6 {[%clk 0:01:16.9]} 34. Rf1 {[%clk 0:00:23.1]} 34...
f5 {[%clk 0:01:17.7]} 35. g3 {[%clk 0:00:12.1]} 35... Kg7 {[%clk 0:01:17.4]} 36.
Kg2 {[%clk 0:00:12.2]} 36... h5 {[%clk 0:01:14.2]} 37. Bf4 {[%clk 0:00:09.1]}
37... g5 {[%clk 0:01:03.5]} 38. Bxd6 {[%clk 0:00:09.2]} 38... Nxd6 {[%clk
0:01:04.7]} 39. Rf2 {[%clk 0:00:07.8]} 39... a5 {[%clk 0:00:58.1]} 40. h4 {[%clk
0:00:04.3]} 40... gxh4 {[%clk 0:00:55.2]} 41. gxh4 {[%clk 0:00:06.2]} 41... Rg6+
{[%clk 0:00:52.1]} 42. Kh3 {[%clk 0:00:07.2]} 42... Rg4 {[%clk 0:00:49.6]} 43.
Nf4 {[%clk 0:00:08.3]} 43... Kh6 {[%clk 0:00:41.9]} 44. Nd5 {[%clk 0:00:09]}
44... Rd4 {[%clk 0:00:37.1]} 45. Ne7 {[%clk 0:00:09]} 45... f4 {[%clk
0:00:21.5]} 46. Nd5 {[%clk 0:00:09.1]} 46... Rd3+ {[%clk 0:00:20.7]} 47. Kg2
{[%clk 0:00:08.6]} 47... a4 {[%clk 0:00:17.7]} 48. Nxf4 {[%clk 0:00:08]} 48...
Rd4 {[%clk 0:00:18.1]} 49. Ne2 {[%clk 0:00:05.5]} 49... Rd2 {[%clk 0:00:17.2]}
50. bxa4 {[%clk 0:00:04.6]} 50... Nxc4 {[%clk 0:00:17.8]} 51. Nc3 {[%clk
0:00:03.9]} 51... Rd3 {[%clk 0:00:16.8]} 52. Ne4 {[%clk 0:00:04]} 52... Ne3+
{[%clk 0:00:18]} 53. Kg1 {[%clk 0:00:04.9]} 53... Rd1+ {[%clk 0:00:18.6]} 54.
Kh2 {[%clk 0:00:04.4]} 54... Ng4+ {[%clk 0:00:19.8]} 55. Kg3 {[%clk 0:00:05.4]}
55... Nxf2 {[%clk 0:00:20.2]} 56. Kxf2 {[%clk 0:00:07.2]} 56... Ra1 {[%clk
0:00:18.8]} 57. Nxc5 {[%clk 0:00:05]} 57... Rxa2+ {[%clk 0:00:19.7]} 58. Ke3
{[%clk 0:00:06.4]} 58... Kg6 {[%clk 0:00:20.7]} 59. Kd4 {[%clk 0:00:07.3]} 59...
Kf5 {[%clk 0:00:20.9]} 60. Kc3 {[%clk 0:00:08]} 60... Kg4 {[%clk 0:00:18.8]} 61.
Kb3 {[%clk 0:00:08.5]} 61... Rf2 {[%clk 0:00:19.7]} 62. a5 {[%clk 0:00:09.2]}
62... Kxh4 {[%clk 0:00:20.6]} 63. a6 {[%clk 0:00:09.9]} 63... Rf8 {[%clk
0:00:20]} 64. Kb4 {[%clk 0:00:08.4]} 64... Kg4 {[%clk 0:00:20.3]} 65. Kb5 {[%clk
0:00:07.4]} 65... h4 {[%clk 0:00:21.3]} 66. a7 {[%clk 0:00:07.9]} 66... h3
{[%clk 0:00:22.5]} 67. Nd7 {[%clk 0:00:08.1]} 67... Ra8 {[%clk 0:00:22.2]} 68.
Kb6 {[%clk 0:00:08.6]} 68... h2 {[%clk 0:00:22.6]} 69. Ne5+ {[%clk 0:00:06.9]}
69... Kf5 {[%clk 0:00:22]} 0-1

[Event "*** Titled Tuesday 3|2 Blitz"]
[Site "Chess.com"]
[Date "2016.01.05"]
[Round "4"]
[White "GrigorGrigorov"]
[Black "oskariot"]
[Result "1-0"]
[WhiteElo "2506"]
[BlackElo "2332"]
[TimeControl "180+2"]
[EndTime "17:54:16 PST"]
[Termination "GrigorGrigorov won on time"]

1. d4 {[%clk 0:03:01.9]} 1... Nf6 {[%clk 0:02:57.9]} 2. c4 {[%clk 0:03:02.5]}
2... c5 {[%clk 0:02:58.4]} 3. d5 {[%clk 0:03:02.4]} 3... b5 {[%clk 0:02:59.5]}
4. cxb5 {[%clk 0:03:03.5]} 4... a6 {[%clk 0:03:00.9]} 5. bxa6 {[%clk 0:03:05]}
5... g6 {[%clk 0:03:02.6]} 6. Nc3 {[%clk 0:03:05.9]} 6... Bxa6 {[%clk
0:03:04.3]} 7. e4 {[%clk 0:03:05.2]} 7... Bxf1 {[%clk 0:03:06.2]} 8. Kxf1 {[%clk
0:03:06.4]} 8... d6 {[%clk 0:03:08.1]} 9. Nge2 {[%clk 0:03:07.1]} 9... Bg7
{[%clk 0:03:09.6]} 10. h3 {[%clk 0:03:07.8]} 10... O-O {[%clk 0:03:10.1]} 11.
Kg1 {[%clk 0:03:08.5]} 11... Nbd7 {[%clk 0:03:09.9]} 12. Kh2 {[%clk 0:03:09.4]}
12... Qa5 {[%clk 0:03:05.5]} 13. Qc2 {[%clk 0:03:09.1]} 13... Rfb8 {[%clk
0:03:06]} 14. Rd1 {[%clk 0:03:00.7]} 14... Ne5 {[%clk 0:02:48.3]} 15. b3 {[%clk
0:02:56.4]} 15... c4 {[%clk 0:02:15.7]} 16. Rb1 {[%clk 0:02:55.9]} 16... cxb3
{[%clk 0:02:06.1]} 17. axb3 {[%clk 0:02:56.3]} 17... Rc8 {[%clk 0:01:57.5]} 18.
b4 {[%clk 0:02:03.1]} 18... Qc7 {[%clk 0:01:56.5]} 19. Qb3 {[%clk 0:01:55]}
19... Neg4+ {[%clk 0:00:37.5]} 20. hxg4 {[%clk 0:01:55.1]} 20... Nxg4+ {[%clk
0:00:37.6]} 21. Kg3 {[%clk 0:01:54.4]} 21... Bxc3 {[%clk 0:00:38.2]} 22. Qxc3
{[%clk 0:01:48]} 22... Qd7 {[%clk 0:00:20.3]} 23. Qd4 {[%clk 0:01:42.3]} 23...
Ra2 {[%clk 0:00:17.8]} 24. Bb2 {[%clk 0:01:42.4]} 24... Ne5 {[%clk 0:00:10.2]}
25. Rdc1 {[%clk 0:01:30.9]} 25... Qg4+ {[%clk 0:00:08.9]} 26. Kh2 {[%clk
0:01:31.5]} 26... Rxc1 {[%clk 0:00:09.7]} 27. Nxc1 {[%clk 0:01:27.8]} 27... Ra4
{[%clk 0:00:03.3]} 28. Nd3 {[%clk 0:01:20]} 28... f6 {[%clk 0:00:02.8]} 29. Nxe5
{[%clk 0:00:56.9]} 29... fxe5 {[%clk 0:00:04.7]} 30. Qd3 {[%clk 0:00:57.5]}
30... Rxb4 {[%clk 0:00:05.7]} 31. Bc3 {[%clk 0:00:54.5]} 31... Qf4+ {[%clk
0:00:03.9]} 32. Kg1 {[%clk 0:00:48.6]} 32... Qxe4 {[%clk 0:00:05.2]} 33. Qxe4
{[%clk 0:00:43.5]} 33... Rxe4 {[%clk 0:00:07.1]} 34. Rb7 {[%clk 0:00:33.3]}
34... Kf7 {[%clk 0:00:07.9]} 35. Bd2 {[%clk 0:00:34.8]} 35... Kf6 {[%clk
0:00:06]} 36. Be3 {[%clk 0:00:34]} 36... Ra4 {[%clk 0:00:05.3]} 37. Rb5 {[%clk
0:00:33]} 37... Kf5 {[%clk 0:00:06]} 38. g3 {[%clk 0:00:32.3]} 38... Ra3 {[%clk
0:00:03.3]} 39. Kg2 {[%clk 0:00:33.3]} 39... h5 {[%clk 0:00:04]} 40. Kf3 {[%clk
0:00:30.3]} 40... g5 {[%clk 0:00:05]} 41. Rb8 {[%clk 0:00:30.4]} 41... g4+
{[%clk 0:00:06.3]} 42. Ke2 {[%clk 0:00:28.9]} 42... Ke4 {[%clk 0:00:07.7]} 43.
Rh8 {[%clk 0:00:27.9]} 43... Ra2+ {[%clk 0:00:09]} 44. Bd2 {[%clk 0:00:28.2]}
44... Kxd5 {[%clk 0:00:09.4]} 45. Rxh5 {[%clk 0:00:29.2]} 45... Ra4 {[%clk
0:00:09.1]} 46. Rg5 {[%clk 0:00:25.6]} 46... Ke6 {[%clk 0:00:09.9]} 47. Rg7
{[%clk 0:00:23.1]} 47... Kf6 {[%clk 0:00:08.9]} 48. Rh7 {[%clk 0:00:23.9]} 48...
d5 {[%clk 0:00:09.3]} 49. Rh5 {[%clk 0:00:21.4]} 49... e6 {[%clk 0:00:09]} 50.
Rh6+ {[%clk 0:00:21.3]} 50... Kf5 {[%clk 0:00:09.9]} 51. Rh5+ {[%clk 0:00:22.3]}
51... Kf6 {[%clk 0:00:11.3]} 52. Rh4 {[%clk 0:00:23.4]} 52... Kf5 {[%clk
0:00:11.6]} 53. Rh8 {[%clk 0:00:20.7]} 53... Kf6 {[%clk 0:00:11.2]} 54. Rf8+
{[%clk 0:00:21.6]} 54... Kg6 {[%clk 0:00:12.1]} 55. Kd3 {[%clk 0:00:21]} 55...
Rd4+ {[%clk 0:00:12.5]} 56. Ke2 {[%clk 0:00:21.3]} 56... Re4+ {[%clk 0:00:13.5]}
57. Kf1 {[%clk 0:00:22.4]} 57... Rd4 {[%clk 0:00:14.1]} 58. Bc3 {[%clk
0:00:22.7]} 58... Re4 {[%clk 0:00:14.8]} 59. Bb2 {[%clk 0:00:22.5]} 59... Kg7
{[%clk 0:00:13.2]} 60. Rd8 {[%clk 0:00:20.6]} 60... Kf6 {[%clk 0:00:13.6]} 61.
Rd7 {[%clk 0:00:20.7]} 61... Rb4 {[%clk 0:00:13.3]} 62. Ba3 {[%clk 0:00:19.7]}
62... Ra4 {[%clk 0:00:13.8]} 63. Be7+ {[%clk 0:00:19.1]} 63... Kf5 {[%clk
0:00:14.1]} 64. Bc5 {[%clk 0:00:17.6]} 64... Rc4 {[%clk 0:00:13]} 65. Be3 {[%clk
0:00:17.5]} 65... Rc2 {[%clk 0:00:09.2]} 66. Rg7 {[%clk 0:00:17.5]} 66... Rc4
{[%clk 0:00:09.9]} 67. Rg5+ {[%clk 0:00:17.6]} 67... Kf6 {[%clk 0:00:11.3]} 68.
Rh5 {[%clk 0:00:19]} 68... Ra4 {[%clk 0:00:11.2]} 69. Ke2 {[%clk 0:00:19.8]}
69... Rc4 {[%clk 0:00:12.3]} 70. Bd2 {[%clk 0:00:19.5]} 70... Ra4 {[%clk
0:00:13.3]} 71. Kd3 {[%clk 0:00:20.2]} 71... Rd4+ {[%clk 0:00:14]} 72. Ke2
{[%clk 0:00:21.3]} 72... Re4+ {[%clk 0:00:15.4]} 73. Kd1 {[%clk 0:00:21.2]}
73... Rd4 {[%clk 0:00:16.5]} 74. Ke1 {[%clk 0:00:21.9]} 74... Re4+ {[%clk
0:00:17.4]} 75. Kf1 {[%clk 0:00:23.4]} 75... Rd4 {[%clk 0:00:18.6]} 76. Be3
{[%clk 0:00:24.8]} 76... Rc4 {[%clk 0:00:19.5]} 77. Ke2 {[%clk 0:00:24.3]} 77...
Ra4 {[%clk 0:00:19.2]} 78. Rh6+ {[%clk 0:00:23.6]} 78... Kf5 {[%clk 0:00:19.7]}
79. Rh5+ {[%clk 0:00:25]} 79... Kf6 {[%clk 0:00:20.9]} 80. Rh4 {[%clk
0:00:25.7]} 80... Kf5 {[%clk 0:00:21.7]} 81. Bd2 {[%clk 0:00:26.4]} 81... Rc4
{[%clk 0:00:21.9]} 82. f3 {[%clk 0:00:27.3]} 82... gxf3+ {[%clk 0:00:17.6]} 83.
Kxf3 {[%clk 0:00:27.8]} 83... e4+ {[%clk 0:00:09.9]} 84. Ke2 {[%clk 0:00:25.2]}
84... Ra4 {[%clk 0:00:05.8]} 85. g4+ {[%clk 0:00:25.8]} 85... Ke5 {[%clk
0:00:05.9]} 86. g5 {[%clk 0:00:24.3]} 86... Kf5 {[%clk 0:00:06.3]} 87. Rf4+
{[%clk 0:00:23.8]} 87... Ke5 {[%clk 0:00:03.8]} 88. g6 {[%clk 0:00:24.1]} 1-0

[Event "*** Titled Tuesday 3|2 Blitz"]
[Site "Chess.com"]
[Date "2016.01.05"]
[Round "5"]
[White "tigra"]
[Black "Smirnov_Pavel"]
[Result "0-1"]
[WhiteElo "2263"]
[BlackElo "2324"]
[TimeControl "180+2"]
[EndTime "17:58:48 PST"]
[Termination "Smirnov_Pavel won by resignation"]

1. e4 {[%clk 0:03:01.9]} 1... e5 {[%clk 0:03:01]} 2. Nf3 {[%clk 0:03:02.4]} 2...
Nc6 {[%clk 0:03:02.2]} 3. Bb5 {[%clk 0:03:04.1]} 3... a6 {[%clk 0:03:03]} 4. Ba4
{[%clk 0:03:05.3]} 4... Nf6 {[%clk 0:03:04.2]} 5. O-O {[%clk 0:03:04.7]} 5...
Be7 {[%clk 0:03:05.3]} 6. Re1 {[%clk 0:03:05.3]} 6... b5 {[%clk 0:03:06.6]} 7.
Bb3 {[%clk 0:03:06.1]} 7... O-O {[%clk 0:03:07.8]} 8. c3 {[%clk 0:03:06.1]} 8...
d5 {[%clk 0:03:08.9]} 9. exd5 {[%clk 0:03:06.8]} 9... Nxd5 {[%clk 0:03:10.1]}
10. Nxe5 {[%clk 0:03:08.2]} 10... Nxe5 {[%clk 0:03:11.3]} 11. Rxe5 {[%clk
0:03:09.8]} 11... c6 {[%clk 0:03:12.7]} 12. d3 {[%clk 0:03:10.2]} 12... Bd6
{[%clk 0:03:13.5]} 13. Re4 {[%clk 0:03:11.3]} 13... Bf5 {[%clk 0:03:12.9]} 14.
Re1 {[%clk 0:03:04.3]} 14... Qh4 {[%clk 0:03:10.4]} 15. g3 {[%clk 0:03:03.5]}
15... Qh3 {[%clk 0:03:11.5]} 16. Nd2 {[%clk 0:02:56.4]} 16... Bg4 {[%clk
0:02:18.5]} 17. f3 {[%clk 0:02:57.1]} 17... Bxg3 {[%clk 0:02:04]} 18. hxg3
{[%clk 0:02:26.3]} 18... Qxg3+ {[%clk 0:02:04.3]} 19. Kh1 {[%clk 0:02:27.6]}
19... Nf4 {[%clk 0:01:46.3]} 20. Re2 {[%clk 0:02:28.2]} 20... Nxe2 {[%clk
0:01:46.4]} 21. Qxe2 {[%clk 0:02:26.7]} 21... Rae8 {[%clk 0:01:46.3]} 22. Qf1
{[%clk 0:02:14.1]} 22... Bh3 {[%clk 0:01:38.1]} 23. Ne4 {[%clk 0:02:09.4]} 23...
Rxe4 {[%clk 0:01:38.3]} 0-1